fUSD/lending_fUSD_20251006
["ID","MTS","AMOUNT","RATE_DAILY","PERIOD"]
[389659260,1759771852608,-230.415312,0.0002981,30]
[389659261,1759771852617,-151.0,0.0002981,30]
[389659262,1759771852628,-151.0,0.0002981,30]
[389659263,1759771852637,-151.0,0.0002981,30]
[389659264,1759771852646,-151.0,0.0002981,30]
[389659265,1759771852655,-151.0,0.0002981,30]
[389659266,1759771852665,-151.0,0.0002981,30]
[389659267,1759771852674,-151.0,0.0002981,30]
[389659268,1759771852683,-151.0,0.0002981,30]
[389659269,1759771852692,-151.0,0.0002981,30]
[389659270,1759771852702,-151.0,0.0002981,30]
[389659271,1759771852711,-151.0,0.0002981,30]
[389659272,1759771852720,-151.0,0.0002981,30]
[389659273,1759771852730,-151.0,0.0002981,30]
[389659274,1759771852739,-151.0,0.0002981,30]
[389659275,1759771852749,-151.0,0.0002981,30]
[389659276,1759771852758,-151.0,0.0002981,30]
[389659277,1759771852767,-151.0,0.0002981,30]
[389659278,1759771852777,-151.0,0.0002981,30]
[389659279,1759771852786,-151.0,0.0002981,30]
[389659280,1759771852795,-151.0,0.0002981,30]
[389659281,1759771852804,-151.0,0.0002981,30]
[389659282,1759771852814,-151.0,0.0002981,30]
[389659283,1759771852823,-151.0,0.0002981,30]
[389659284,1759771852832,-151.0,0.0002981,30]
[389659285,1759771852841,-151.0,0.0002981,30]
[389659286,1759771852851,-151.0,0.0002981,30]
[389659287,1759771852860,-151.0,0.0002981,30]
[389659288,1759771852869,-151.0,0.0002981,30]
[389659289,1759771852879,-151.0,0.0002981,30]
[389659290,1759771852888,-151.0,0.0002981,30]
[389659291,1759771852897,-151.0,0.0002981,30]
[389659292,1759771852907,-151.0,0.0002981,30]
[389659293,1759771852916,-151.0,0.0002981,30]
[389659294,1759771852925,-151.0,0.0002981,30]
[389659295,1759771852935,-151.0,0.0002981,30]
[389659296,1759771852944,-151.0,0.0002981,30]
[389659297,1759771852954,-151.0,0.0002981,30]
[389659298,1759771852964,-151.0,0.0002981,30]
[389659299,1759771852974,-296.621368,0.0002981,30]
[389659300,1759771852983,-151.0,0.0002981,30]
[389659301,1759771852992,-151.0,0.0002981,30]
[389659302,1759771853005,-151.0,0.0002981,30]
[389659303,1759771853014,-151.0,0.0002981,30]
[389659304,1759771853024,-151.0,0.0002981,30]
[389659305,1759771853034,-151.0,0.0002981,30]
[389659306,1759771853043,-151.0,0.0002981,30]
[389659307,1759771853053,-151.0,0.0002981,30]
[389659308,1759771853062,-255.223816,0.0002981,30]
[389659309,1759771853072,-151.0,0.0002981,30]
[389659310,1759771853081,-151.0,0.0002981,30]
[389659311,1759771853091,-151.0,0.0002981,30]
[389659312,1759771853100,-151.0,0.0002981,30]
[389659313,1759771853110,-295.815856,0.0002981,30]
[389659314,1759771853120,-151.0,0.0002981,30]
[389659315,1759771853130,-151.0,0.0002981,30]
[389659316,1759771853139,-151.0,0.0002981,30]
[389659317,1759771853149,-151.0,0.0002981,2]
[389659318,1759771853159,-151.0,0.0002981,2]
[389659319,1759771853169,-151.0,0.0002981,2]
[389659320,1759771853179,-151.0,0.0002981,2]
[389659321,1759771853188,-151.0,0.0002981,2]
[389659322,1759771853198,-151.0,0.0002981,30]
[389659323,1759771853207,-151.0,0.0002981,2]
[389659324,1759771853217,-151.0,0.0002981,30]
[389659325,1759771853227,-151.0,0.0002981,2]
[389659326,1759771853237,-151.0,0.0002981,2]
[389659327,1759771853247,-151.0,0.0002981,30]
[389659328,1759771853257,-151.0,0.0002981,2]
[389659329,1759771853267,-180.977161,0.0002981,30]
[389659330,1759771853277,-151.0,0.0002981,2]
[389659331,1759771853288,-151.0,0.0002981,2]
[389659332,1759771853298,-151.0,0.0002981,30]
[389659333,1759771853308,-151.0,0.0002981,30]
[389659334,1759771853317,-151.0,0.0002981,2]
[389659335,1759771853327,-151.0,0.0002981,30]
[389659336,1759771853336,-151.0,0.0002981,2]
[389659337,1759771853346,-151.0,0.0002981,30]
[389659338,1759771853357,-151.0,0.0002981,2]
[389659339,1759771853367,-151.0,0.0002981,30]
[389659340,1759771853377,-151.0,0.0002981,2]
[389659341,1759771853387,-151.0,0.0002981,30]
[389659342,1759771853396,-151.0,0.0002981,2]
[389659343,1759771853406,-151.0,0.0002981,30]
[389659344,1759771853416,-287.228672,0.0002981,2]
[389659345,1759771853426,-151.0,0.0002981,30]
[389659346,1759771853435,-151.0,0.0002981,30]
[389659347,1759771853444,-151.0,0.0002981,30]
[389659348,1759771853453,-151.0,0.0002981,30]
[389659349,1759771853463,-151.0,0.0002981,30]
[389659350,1759771853472,-193.702985,0.0002981,30]
[389659351,1759771853482,-151.0,0.0002981,30]
[389659352,1759771853491,-151.0,0.0002981,30]
[389659353,1759771853502,-151.0,0.0002981,30]
[389659354,1759771853511,-151.0,0.0002981,30]
[389659355,1759771853521,-151.0,0.0002981,30]
[389659356,1759771853530,-151.0,0.0002981,30]
[389659357,1759771853539,-151.0,0.0002981,30]
[389659358,1759771853554,-276.34746,0.0002981,30]
[389659359,1759771853564,-151.0,0.0002981,30]
[389659360,1759771853573,-151.0,0.0002981,30]
[389659361,1759771853582,-151.0,0.0002981,30]
[389659362,1759771853594,-151.0,0.0002981,30]
[389659363,1759771853603,-151.0,0.0002981,30]
[389659364,1759771853612,-151.0,0.0002981,30]
[389659365,1759771853623,-151.0,0.0002981,30]
[389659366,1759771853633,-151.0,0.0002981,30]
[389659367,1759771853642,-151.0,0.0002981,30]
[389659368,1759771853651,-151.0,0.0002981,30]
[389659369,1759771853661,-151.0,0.0002981,30]
[389659370,1759771853670,-151.0,0.0002981,30]
[389659371,1759771853679,-151.0,0.0002981,30]
[389659372,1759771853688,-151.0,0.0002981,30]
[389659373,1759771853698,-151.0,0.0002981,30]
[389659374,1759771853707,-151.0,0.0002981,30]
[389659375,1759771853716,-151.0,0.0002981,30]
[389659376,1759771853725,-151.0,0.0002981,30]
[389659377,1759771853735,-151.0,0.0002981,30]
[389659378,1759771853744,-151.0,0.0002981,30]
[389659379,1759771853754,-151.0,0.0002981,30]
[389659380,1759771853763,-151.0,0.0002981,30]
[389659381,1759771853773,-151.0,0.0002981,30]
[389659382,1759771853783,-151.0,0.0002981,30]
[389659383,1759771853792,-151.0,0.0002981,30]
[389659384,1759771853802,-151.0,0.0002981,30]
[389659385,1759771853811,-151.0,0.0002981,30]
[389659386,1759771853820,-151.0,0.0002981,30]
[389659387,1759771853829,-277.032823,0.0002981,30]
[389659388,1759771853839,-151.0,0.0002981,30]
[389659389,1759771853849,-151.0,0.0002981,30]
[389659390,1759771853859,-151.0,0.0002981,15]
[389659391,1759771853868,-151.0,0.0002981,15]
[389659393,1759771853877,-1007.468383,0.0002981,30]
[389659394,1759771853887,-151.0,0.0002981,15]
[389659395,1759771853896,-1007.468383,0.0002981,30]
[389659396,1759771853906,-151.0,0.0002981,15]
[389659397,1759771853915,-200.926597,0.0002981,30]
[389659398,1759771853924,-1007.468383,0.0002981,30]
[389659399,1759771853934,-151.0,0.0002981,15]
[389659400,1759771853944,-1007.468383,0.0002981,30]
[389659401,1759771853953,-151.0,0.0002981,30]
[389659402,1759771853963,-151.0,0.0002981,15]
[389659403,1759771853973,-1007.468383,0.0002981,30]
[389659404,1759771853982,-151.0,0.0002981,30]
[389659405,1759771853992,-235.209633,0.0002981,15]
[389659406,1759771854002,-1007.468383,0.0002981,30]
[389659407,1759771854012,-1007.468383,0.0002981,30]
[389659408,1759771854021,-1007.468383,0.0002981,30]
[389659409,1759771854030,-1007.468383,0.0002981,30]
[389659410,1759771854039,-1007.468383,0.0002981,30]
[389659411,1759771854048,-1007.468383,0.0002981,30]
[389659412,1759771854057,-1007.468383,0.0002981,30]
[389659413,1759771854067,-1007.468383,0.0002981,30]
[389659414,1759771854076,-1007.468383,0.0002981,30]
[389659415,1759771854085,-198.603133,0.0002981,30]
[389659416,1759771854095,-151.0,0.0002981,30]
[389659417,1759771854104,-1007.468383,0.0002981,30]
[389659418,1759771854114,-1007.468383,0.0002981,30]
[389659419,1759771854123,-153.835409,0.0002981,30]
[389659420,1759771854133,-1007.468383,0.0002981,30]
[389659421,1759771854142,-151.0,0.0002981,30]
[389659422,1759771854152,-1007.468383,0.0002981,30]
[389659423,1759771854162,-151.0,0.0002981,30]
[389659424,1759771854171,-1007.468383,0.0002981,30]
[389659425,1759771854181,-151.0,0.0002981,30]
[389659426,1759771854190,-1007.468379,0.0002981,30]
[389659427,1759771854199,-151.0,0.0002981,30]
[389659428,1759771854207,-151.0,0.0002981,30]
[389659429,1759771854218,-151.0,0.0002981,30]
[389659430,1759771854227,-151.0,0.0002981,30]
[389659431,1759771854238,-151.0,0.0002981,30]
[389659432,1759771854247,-151.0,0.0002981,30]
[389659433,1759771854256,-151.0,0.0002981,30]
[389659434,1759771854266,-190.628336,0.0002981,30]
[389659435,1759771854276,-151.0,0.0002981,30]
[389659436,1759771854285,-225.421926,0.0002981,30]
[389659437,1759771854294,-151.0,0.0002981,30]
[389659438,1759771854304,-203.045526,0.0002981,30]
[389659439,1759771854313,-151.0,0.0002981,30]
[389659440,1759771854322,-151.0,0.0002981,30]
[389659441,1759771854331,-151.0,0.0002981,30]
[389659442,1759771854341,-151.0,0.0002981,30]
[389659443,1759771854350,-151.0,0.0002981,30]
[389659444,1759771854360,-151.0,0.0002981,30]
[389659445,1759771854369,-261.818863,0.0002981,30]
[389659446,1759771854378,-151.0,0.0002981,30]
[389659447,1759771854387,-180.661024,0.0002981,30]
[389659448,1759771854397,-151.0,0.0002981,30]
[389659449,1759771854406,-151.0,0.0002981,30]
[389659450,1759771854415,-151.0,0.0002981,30]
[389659451,1759771854425,-151.0,0.0002981,30]
[389659452,1759771854434,-6554.56105472,0.0002981,2]
[389659453,1759771854443,-87666.20592822,0.0002981,7]
[389659454,1759771854583,-378429.14916374,0.0002981,7]
[389659455,1759771854677,-151.0,0.0002981,30]
[389659456,1759771854687,-151.0,0.0002981,30]
[389659457,1759771854697,-151.0,0.0002981,30]
[389659458,1759771854706,-94.6916,0.0002981,30]
[389659459,1759771854717,-198.937022,0.0002981,30]
[389659460,1759771854727,-246.462844,0.0002981,30]
[389659461,1759771854736,-246.462844,0.0002981,30]
[389659462,1759771854745,-246.462844,0.0002981,30]
[389659463,1759771854755,-44.77381114,0.0002981,7]
[389659464,1759771854766,-797.2999999,0.0002981,7]
[389659465,1759771854777,-592.49999998,0.0002981,7]
[389659466,1759771854794,-246.462844,0.0002981,30]
[389659467,1759771854804,-740.42348996,0.0002981,7]
[389659468,1759771854815,-4870.45453968,0.0002981,7]
[389659511,1759773031758,-1000.0,0.00016438,2]
[389659512,1759773031767,-150.0,0.00016907,2]
[389659513,1759773031777,-154.571382,0.00016907,2]
[389659514,1759773031786,-250.0,0.00017,2]
[389659515,1759773031795,-302.13,0.00017,2]
[389659516,1759773031804,-303.16,0.00017003,2]
[389659517,1759773031813,-300.31,0.00017014,2]
[389659518,1759773031822,-300.37,0.00017078,2]
[389659519,1759773031831,-96.43255695,0.00017425,2]
[389659520,1759773031843,-208.49744305,0.00017425,2]
[389659521,1759773031852,-220.0,0.00017752,2]
[389659522,1759773031861,-1200.0,0.00017752,2]
[389659523,1759773031870,-200.0,0.00017753,2]
[389659524,1759773031882,-151.0,0.00017753,2]
[389659525,1759773031892,-151.0,0.00017753,2]
[389659526,1759773031901,-151.0,0.00017753,2]
[389659527,1759773031911,-151.0,0.00017753,2]
[389659528,1759773031921,-151.0,0.00017753,2]
[389659529,1759773031931,-151.0,0.00017753,2]
[389659530,1759773031940,-151.0,0.00017753,2]
[389659531,1759773031949,-168.30318637,0.00017753,2]
[389659532,1759773031960,-151.0,0.00017753,2]
[389659533,1759773031969,-151.0,0.00017753,2]
[389659534,1759773031978,-151.0,0.00017753,2]
[389659535,1759773031987,-151.0,0.00017753,2]
[389659536,1759773031996,-151.0,0.00017753,2]
[389659537,1759773032006,-200.0,0.00017753,2]
[389659538,1759773032015,-151.0,0.00017753,2]
[389659539,1759773032024,-151.0,0.00017753,2]
[389659540,1759773032034,-151.0,0.00017753,2]
[389659541,1759773032043,-151.0,0.00017753,2]
[389659544,1759773032271,-151.0,0.00017753,2]
[389659545,1759773032281,-200.0,0.00017753,2]
[389659546,1759773032290,-297.72,0.00017764,2]
[389659547,1759773032299,-500.0,0.000178,2]
[389659548,1759773032308,-297.72,0.00018038,2]
[389659549,1759773032317,-297.73,0.00018312,2]
[389659550,1759773032326,-983.87718976,0.00018598,2]
[389659551,1759773032334,-193.0,0.000188,2]
[389659552,1759773032343,-150.0,0.00018953,2]
[389659553,1759773032352,-300.0,0.00019,2]
[389659554,1759773032361,-301.18,0.00019098,2]
[389659555,1759773032370,-301.09,0.00019217,2]
[389659556,1759773032379,-370.68887098,0.00019357,2]
[389659557,1759773032387,-303.96,0.00019399,2]
[389659558,1759773032396,-304.02,0.00019568,2]
[389659559,1759773032405,-1000.0,0.0001985,2]
[389659560,1759773032414,-303.87,0.000199,2]
[389659561,1759773032423,-1000.0,0.000199,2]
[389659562,1759773032432,-305.29,0.000199,2]
[389659563,1759773032442,-1696.97645112,0.0002,2]
[389659564,1759773032451,-10492.00427454,0.0002,2]
[389659565,1759773032460,-1000.0,0.0002,2]
[389659566,1759773032470,-1000.0,0.0002,2]
[389659567,1759773032479,-1000.0,0.0002,2]
[389659568,1759773032488,-973.03509056,0.0002,2]
[389659569,1759773032503,-26.96490944,0.0002,2]
[389659570,1759773032514,-1000.0,0.0002,2]
[389659571,1759773032523,-1000.0,0.0002,2]
[389659572,1759773032533,-1000.0,0.0002,2]
[389659573,1759773032542,-1000.0,0.0002,2]
[389659574,1759773032552,-530.67,0.0002,2]
[389659575,1759773032561,-150.07,0.0002,2]
[389659576,1759773032570,-515.95,0.0002,2]
[389659577,1759773032580,-1696.97645112,0.000202,2]
[389659578,1759773032589,-1696.97645112,0.000204,2]
[389659579,1759773032598,-3400.0,0.00020432,2]
[389659580,1759773032607,-1265.0,0.00020432,2]
[389659581,1759773032617,-789.338,0.00020432,2]
[389659582,1759773032626,-3725.236,0.00020432,2]
[389659583,1759773032635,-4148.854,0.00020432,2]
[389659584,1759773032645,-628.33,0.00020432,2]
[389659585,1759773032654,-1696.97645112,0.000206,2]
[389659586,1759773032663,-1696.97645112,0.000208,2]
[389659587,1759773032673,-350.0,0.00021,2]
[389659588,1759773032682,-168.0,0.00021093,2]
[389659589,1759773032691,-1898.0,0.00021519,2]
[389659590,1759773032700,-1318.90132988,0.00021609,7]
[389659591,1759773032710,-168.0,0.00021618,2]
[389659592,1759773032719,-1898.0,0.00021741,2]
[389659593,1759773032728,-168.0,0.00021925,2]
[389659594,1759773032738,-1898.0,0.00021963,2]
[389659595,1759773032747,-600.0,0.0002211,2]
[389659596,1759773032756,-5000.0,0.00022174,2]
[389659597,1759773032768,-1898.0,0.00022185,2]
[389659598,1759773032777,-703.98839713,0.00022185,2]
[389659599,1759773032786,-168.0,0.00022259,2]
[389659600,1759773032795,-187.95501296,0.00022369,2]
[389659601,1759773032810,-312.0,0.00022369,2]
[389659602,1759773032820,-697.46480432,0.00022369,2]
[389659603,1759773032831,-421.82543743,0.00022369,2]
[389659604,1759773032842,-89.37474529,0.00022369,2]
[389659605,1759773032851,-1898.0,0.00022407,2]
[389659606,1759773032860,-168.0,0.00022595,2]
[389659607,1759773032869,-1898.0,0.00022628,2]
[389659608,1759773032880,-150.0,0.00022655,2]
[389659609,1759773032893,-600.0,0.00022658,2]
[389659610,1759773032901,-1000.0,0.00022783,2]
[389659611,1759773032910,-666.0,0.00022837,3]
[389659612,1759773032919,-1898.0,0.0002285,2]
[389659613,1759773032930,-190.81,0.00022853,2]
[389659614,1759773032939,-168.0,0.00022998,2]
[389659615,1759773032948,-400.0,0.00023,2]
[389659616,1759773032958,-600.0,0.00023206,2]
[389659617,1759773032967,-600.0,0.00023754,2]
[389659618,1759773032976,-1844.74,0.00023836,2]
[389659619,1759773032984,-1150.48,0.00023874,2]
[389659620,1759773032993,-190.81,0.00023996,2]
[389659621,1759773033003,-4281.87,0.00024242,2]
[389659622,1759773033013,-600.0,0.00024302,2]
[389659623,1759773033022,-1761.448,0.00024445,7]
[389659624,1759773033031,-920.52,0.00024658,2]
[389659625,1759773033041,-176.58,0.00024743,2]
[389659626,1759773033050,-600.0,0.0002485,2]
[389659627,1759773033059,-1036.65,0.00025,2]
[389659628,1759773033068,-190.81,0.00025138,2]
[389659629,1759773033077,-250.0,0.00025256,2]
[389659630,1759773033086,-1000.0,0.00025306,2]
[389659631,1759773033095,-600.0,0.00025398,2]
[389659632,1759773033104,-1036.65,0.000255,2]
[389659633,1759773033113,-600.0,0.00025946,2]
[389659634,1759773033122,-1036.65,0.00026,30]
[389659635,1759773033131,-176.58,0.00026112,2]
[389659636,1759773033140,-190.81,0.00026281,2]
[389659637,1759773033149,-600.0,0.00026494,2]
[389659638,1759773033158,-1036.65,0.000265,30]
[389659639,1759773033167,-150.0,0.00026827,4]
[389659640,1759773033176,-150.0,0.00026827,4]
[389659641,1759773033184,-150.0,0.00026827,4]
[389659642,1759773033193,-150.0,0.00026827,4]
[389659643,1759773033202,-150.0,0.00026827,4]
[389659644,1759773033211,-150.0,0.00026827,4]
[389659645,1759773033220,-150.0,0.00026827,4]
[389659646,1759773033228,-150.0,0.00026827,4]
[389659647,1759773033237,-231.22253024,0.00026827,4]
[389659648,1759773033246,-150.0,0.00026827,4]
[389659649,1759773033255,-150.0,0.00026827,4]
[389659650,1759773033265,-1036.65,0.00027,30]
[389659651,1759773033274,-600.0,0.00027042,2]
[389659652,1759773033283,-151.0,0.00027266,2]
[389659653,1759773033292,-151.0,0.00027266,2]
[389659654,1759773033301,-151.0,0.00027266,2]
[389659655,1759773033310,-151.0,0.00027266,2]
[389659656,1759773033319,-255.0,0.00027266,2]
[389659657,1759773033327,-151.0,0.00027266,2]
[389659658,1759773033337,-322.6107,0.00027266,2]
[389659659,1759773033346,-7965.41053268,0.00027266,2]
[389659660,1759773033354,-500.0,0.00027266,2]
[389659661,1759773033363,-500.0,0.00027266,2]
[389659662,1759773033372,-98.93147126,0.00027266,2]
[389659663,1759773033401,-488.5289384,0.00027266,2]
[389659664,1759773033410,-151.0,0.00027266,2]
[389659665,1759773033419,-200.58019366,0.00027321,2]
[389659666,1759773037538,-285.608,0.00026501,2]
[389659667,1759773037547,-8059.55052873,0.00027321,2]
[389659668,1759773037556,-8565.75555911,0.00027376,2]
[389659669,1759773037565,-300.0,0.00027397,7]
[389659670,1759773037575,-411.15866498,0.00027397,2]
[389659671,1759773037584,-300.0,0.00027397,2]
[389659672,1759773037594,-920.52,0.00027397,2]
[389659673,1759773037604,-150.0,0.00027398,2]
[389659674,1759773037613,-190.81,0.00027424,2]
[389659675,1759773037622,-8882.6885148,0.00027431,2]
[389659676,1759773037632,-9211.34798985,0.00027486,2]
[389659677,1759773037641,-1036.65,0.000275,30]
[389659678,1759773037649,-2085.78608176,0.00027523,2]
[389659679,1759773037659,-9552.16786547,0.00027541,2]
[389659680,1759773037668,-600.0,0.0002759,2]
[389659681,1759773037677,-9905.5980765,0.00027596,2]
[389659682,1759773037686,-2446.29231812,0.00027648,2]
[389659683,1759773037696,-910.61170912,0.00027651,2]
[389659684,1759773037705,-1000.0,0.00027671,7]
[389659685,1759773037714,-2806.79855447,0.00027773,2]
[389659686,1759773037723,-3167.30479083,0.00027898,2]
[389659687,1759773037731,-1000.0,0.00027911,7]
[389659688,1759773037741,-162.34,0.00028,14]
[389659689,1759773037750,-1036.65,0.00028,30]
[389659690,1759773037758,-3527.81102718,0.00028022,2]
[389659691,1759773037767,-2500.0,0.00028047,2]
[389659692,1759773037777,-600.0,0.00028138,2]
[389659693,1759773037786,-3888.31726353,0.00028147,2]
[389659694,1759773037795,-1000.0,0.00028151,7]
[389659695,1759773037804,-787.52925876,0.0002827,2]
[389659696,1759773037814,-4248.82349989,0.00028272,2]
[389659697,1759773037823,-150.0,0.00028318,7]
[389659698,1759773037833,-150.0,0.00028318,7]
[389659699,1759773037842,-1000.0,0.0002839,7]
[389659700,1759773037852,-4609.32973624,0.00028397,2]
[389659702,1759773037860,-150.66,0.00028405,2]
[389659703,1759773037869,-1036.65,0.000285,30]
[389659704,1759773037881,-787.52925876,0.0002852,2]
[389659705,1759773037891,-4969.8359726,0.00028522,2]
[389659706,1759773037901,-1000.0,0.0002863,7]
[389659707,1759773037910,-5330.34220895,0.00028647,2]
[389659708,1759773037919,-600.0,0.00028686,2]
[389659709,1759773037928,-5690.8484453,0.00028772,2]
[389659710,1759773037938,-1000.0,0.0002887,7]
[389659711,1759773037947,-6051.35468166,0.00028896,2]
[389659712,1759773037958,-3084.74203598,0.000289,120]
[389659713,1759773037967,-600.0,0.000289,10]
[389659714,1759773037977,-787.52925876,0.00028972,2]
[389659715,1759773037987,-174.93,0.00028986,2]
[389659716,1759773037998,-391.44,0.00028986,2]
[389659717,1759773038008,-13194.53420463,0.00029,7]
[389659718,1759773038018,-1036.65,0.00029,30]
[389659719,1759773038027,-1200.0,0.00029,10]
[389659720,1759773038038,-1001.55558498,0.00029,2]
[389659721,1759773038048,-6411.86091801,0.00029021,2]
[389659723,1759773038058,-1444.0,0.00029041,120]
[389659725,1759773038067,-152.0,0.00029058,3]
[389659727,1759773038076,-787.52925876,0.00029058,2]
[389659728,1759773038085,-1425.0,0.00029085,2]
[389659729,1759773038094,-1800.0,0.000291,10]
[389659730,1759773038104,-158.35509807,0.000291,2]
[389659731,1759773038114,-1000.0,0.0002911,7]
[389659732,1759773038123,-1000.0,0.00029128,2]
[389659733,1759773038134,-681.13,0.00029132,2]
[389659734,1759773038144,-6772.36715437,0.00029146,2]
[389659735,1759773038153,-2400.0,0.000292,10]
[389659736,1759773038163,-600.0,0.00029234,2]
[389659737,1759773038172,-158.35509804,0.00029255,2]
[389659738,1759773038181,-7132.87339072,0.00029271,2]
[389659739,1759773038191,-3000.0,0.000293,10]
[389659740,1759773038201,-10000.0,0.000293,10]
[389659741,1759773038210,-1000.0,0.00029349,7]
[389659742,1759773038220,-37610.0219717,0.0002938,3]
[389659743,1759773038229,-1000.0,0.0002939,2]
[389659744,1759773038239,-7493.37962707,0.00029396,2]
[389659745,1759773038248,-600.0,0.000294,10]
[389659746,1759773038257,-158.35509804,0.00029411,2]
[389659747,1759773038267,-787.52925877,0.0002945,2]
[389659748,1759773038276,-600.0,0.000295,10]
[389659749,1759773038285,-10000.0,0.000295,8]
[389659750,1759773038294,-479.89798298,0.00029504,2]
[389659751,1759773038304,-7853.88586343,0.00029521,2]
[389659752,1759773038313,-479.89798293,0.00029528,2]
[389659753,1759773038323,-479.89798293,0.00029552,2]
[389659754,1759773038332,-158.35509804,0.00029566,2]
[389659755,1759773038341,-479.89798293,0.00029576,2]
[389659756,1759773038350,-200.0,0.0002958,2]
[389659757,1759773038359,-15108.93178597,0.00029584,2]
[389659758,1759773038369,-1604.06775127,0.00029589,7]
[389659759,1759773038379,-150.0,0.0002959,2]
[389659760,1759773038389,-150.0,0.0002959,2]
[389659761,1759773038398,-500.0,0.0002959,2]
[389659762,1759773038407,-150.0,0.0002959,2]
[389659763,1759773038417,-150.0,0.0002959,2]
[389659764,1759773038426,-150.0,0.0002959,2]
[389659765,1759773038436,-200.0,0.0002959,2]
[389659766,1759773038445,-150.0,0.0002959,2]
[389659767,1759773038454,-500.0,0.0002959,2]
[389659768,1759773038464,-37610.0219717,0.0002959,3]
[389659769,1759773038474,-5401.6523981,0.00029592,2]
[389659770,1759773038483,-2000.0,0.000296,2]
[389659771,1759773038492,-600.0,0.000296,10]
[389659772,1759773038502,-479.89798293,0.000296,2]
[389659773,1759773038511,-167.0246056,0.00029604,15]
[389659774,1759773038520,-5000.0,0.0002961,2]
[389659775,1759773038530,-1000.0,0.00029614,2]
[389659776,1759773038539,-167.02460553,0.00029619,15]
[389659777,1759773038549,-479.89798293,0.00029625,2]
[389659778,1759773038558,-167.02460553,0.00029633,15]
[389659779,1759773038568,-1000.0,0.00029634,2]
[389659780,1759773038578,-8214.39209978,0.00029646,2]
[389659781,1759773038587,-167.02460553,0.00029648,15]
[389659782,1759773038597,-479.89798293,0.00029649,2]
[389659783,1759773038607,-167.02460553,0.00029663,15]
[389659784,1759773038617,-479.89798293,0.00029673,2]
[389659785,1759773038627,-167.02460553,0.00029677,15]
[389659786,1759773038636,-2000.0,0.00029679,2]
[389659787,1759773038646,-157.0002684,0.00029686,2]
[389659788,1759773038656,-37610.0219717,0.0002969,3]
[389659789,1759773038665,-167.02460553,0.00029692,15]
[389659790,1759773038675,-479.89798293,0.00029697,2]
[389659791,1759773038684,-600.0,0.000297,10]
[389659792,1759773038693,-75220.0439434,0.000297,3]
[389659793,1759773038703,-4578.95680296,0.000297,3]
[389659794,1759773038712,-157.0002684,0.00029704,2]
[389659795,1759773038722,-167.02460553,0.00029706,15]
[389659796,1759773038731,-2981.1702,0.0002971,2]
[389659797,1759773038741,-20356.6513,0.0002971,2]
[389659798,1759773038751,-49327.20915948,0.0002971,2]
[389659799,1759773038771,-22295.30850862,0.0002971,2]
[389659800,1759773038783,-38831.4556319,0.0002971,2]
[389659801,1759773038794,-1526.31893432,0.00029711,3]
[389659802,1759773038804,-157.0002684,0.00029721,2]
[389659803,1759773038814,-167.02460553,0.00029721,15]
[389659804,1759773038823,-479.89798293,0.00029721,2]
[389659805,1759773038833,-158.35509804,0.00029721,2]
[389659806,1759773038842,-417.20720311,0.00029721,5]
[389659807,1759773038851,-1425.0,0.00029741,2]
[389659808,1759773038860,-16829.79949249,0.0002976,3]